bitfinex/quotes_BTCUSD_20241205
["timestamp","ask_amount","ask_price","bid_price","bid_amount"]
[1733410146907,0.00017522,103430.0,103420.0,0.45453772]
[1733410147086,0.00017522,103430.0,103420.0,0.57753772]
[1733410147287,0.00017522,103430.0,103420.0,0.55913772]
[1733410149112,2.2e-07,103430.0,103420.0,0.65913772]
[1733410149874,0.0008679,103470.0,103460.0,0.193311]
[1733410150092,5.845e-05,103470.0,103460.0,0.54906407]
[1733410150299,5.845e-05,103470.0,103460.0,0.54809767]
[1733410150530,5.845e-05,103470.0,103460.0,0.386622]
[1733410151163,5.845e-05,103470.0,103460.0,0.64777372]
[1733410151964,5.845e-05,103470.0,103460.0,0.386622]
[1733410152217,5.845e-05,103470.0,103460.0,0.193311]
[1733410152803,5.845e-05,103470.0,103450.0,0.536628]
[1733410153155,5.845e-05,103470.0,103450.0,0.729949]
[1733410153567,5.845e-05,103470.0,103460.0,0.193311]
[1733410153981,0.4427037,103470.0,103450.0,0.15]
[1733410154207,0.19967605,103460.0,103450.0,0.15]
[1733410154424,0.14972665,103470.0,103460.0,0.193311]
[1733410154655,0.2494027,103470.0,103460.0,0.193311]
[1733410154877,0.2494027,103470.0,103450.0,0.536633]
[1733410155104,0.19967605,103460.0,103450.0,0.15]
[1733410155307,6.00189937,103460.0,103450.0,0.15]
[1733410155539,5.95069937,103460.0,103450.0,0.15]
[1733410155759,5.8892237,103460.0,103450.0,0.15]
[1733410155990,5.7892237,103460.0,103450.0,0.15]
[1733410156856,5.81562383,103460.0,103450.0,0.15]
[1733410157059,5.71562383,103460.0,103450.0,0.15]
[1733410157697,5.71562383,103460.0,103430.0,0.023]
[1733410157698,0.193348,103440.0,103430.0,0.023]
[1733410157902,0.70079972,103440.0,103430.0,0.023]
[1733410158135,0.315667,103430.0,103420.0,0.023]
[1733410158340,5.92409435,103430.0,103420.0,0.023]
[1733410158541,6.02409435,103430.0,103420.0,0.023]
[1733410158749,5.92409435,103430.0,103420.0,0.023]
[1733410158965,5.97393305,103430.0,103420.0,0.023]
[1733410159421,5.97393305,103430.0,103420.0,0.02317522]
[1733410159657,5.92409435,103430.0,103420.0,0.02317522]
[1733410160314,5.92409435,103430.0,103400.0,0.0017364]
[1733410160315,0.374004,103410.0,103400.0,0.0017364]
[1733410160512,0.73615572,103410.0,103400.0,0.0017364]
[1733410160942,0.57468005,103410.0,103400.0,0.0017364]
[1733410161590,0.67259927,103410.0,103400.0,0.0017364]
[1733410162051,0.57468005,103410.0,103400.0,0.0017364]
[1733410162262,0.67468005,103410.0,103400.0,0.0017364]
[1733410162467,0.57468005,103410.0,103400.0,0.0017364]
[1733410163652,0.33077605,103410.0,103400.0,0.0017364]
[1733410163857,0.52418005,103410.0,103400.0,0.0017364]
[1733410164492,0.33077605,103410.0,103400.0,0.0017364]
[1733410164932,0.1505,103420.0,103400.0,0.1951594]
[1733410165150,0.50630671,103420.0,103400.0,0.1951594]
[1733410165364,0.69970171,103420.0,103400.0,0.1951594]
[1733410165590,0.15017605,103420.0,103400.0,0.3895225]
[1733410165809,0.09967605,103420.0,103410.0,0.193404]
[1733410166243,6.07942658,103430.0,103420.0,0.193386]
[1733410166467,0.00017528,103430.0,103420.0,0.35582856]
[1733410166672,0.00017528,103430.0,103420.0,0.45453772]
[1733410167113,0.00017528,103430.0,103420.0,0.193386]
[1733410167811,0.00017528,103430.0,103420.0,0.35582847]
[1733410168026,0.00017528,103430.0,103420.0,0.193386]
[1733410168443,0.00017528,103430.0,103420.0,0.19435275]
[1733410169611,0.00017528,103430.0,103420.0,0.193386]
[1733410169851,0.19985133,103430.0,103400.0,0.0017364]
[1733410170057,0.09985133,103430.0,103420.0,0.193386]
[1733410170261,0.19985133,103430.0,103410.0,0.38678]
[1733410170410,0.00017528,103430.0,103420.0,0.193386]
[1733410174060,0.29321933,103430.0,103410.0,0.193389]
[1733410174259,0.09985133,103430.0,103410.0,0.386784]
[1733410174388,0.09985133,103430.0,103420.0,0.193386]
[1733410174584,0.09985133,103430.0,103410.0,0.58018]
[1733410174797,0.02317528,103430.0,103420.0,0.193386]
[1733410175031,0.09967605,103430.0,103400.0,0.1951464]
[1733410175248,0.09967605,103430.0,103400.0,0.3885554]
[1733410175249,0.56793405,103430.0,103400.0,0.3885554]
[1733410175455,0.193386,103420.0,103400.0,0.1951454]
[1733410175669,0.37455305,103430.0,103400.0,0.3885574]
[1733410175891,0.56793505,103430.0,103400.0,0.3885574]
[1733410176121,0.56793505,103430.0,103410.0,0.193402]
[1733410176467,0.56793205,103430.0,103410.0,0.193402]
[1733410177600,0.37455305,103430.0,103410.0,0.193402]
[1733410177808,0.56792805,103430.0,103410.0,0.386806]
[1733410178036,0.76131005,103430.0,103400.0,0.3885584]
[1733410178247,0.76131005,103430.0,103410.0,0.1951398]
[1733410178464,0.37455105,103430.0,103410.0,0.1951398]
[1733410178694,0.56792605,103430.0,103410.0,0.1951398]
[1733410178910,0.16078728,103440.0,103420.0,0.19337]
[1733410179115,0.11306333,103440.0,103430.0,0.193367]
[1733410179328,0.11306333,103440.0,103420.0,0.38692228]
[1733410179531,0.11306333,103440.0,103420.0,0.38691928]
[1733410179735,0.11306333,103440.0,103430.0,0.193367]
[1733410180159,0.11306333,103440.0,103420.0,0.38691828]
[1733410180572,0.01338728,103440.0,103420.0,0.38691828]
[1733410180795,0.01338728,103440.0,103430.0,0.35580937]
[1733410181020,0.01338728,103440.0,103430.0,0.35484267]
[1733410181661,0.01338728,103440.0,103430.0,0.45451872]
[1733410182097,0.01338728,103440.0,103430.0,0.52991872]
[1733410183685,0.01338728,103440.0,103430.0,0.193367]
[1733410183890,0.01338728,103440.0,103420.0,0.38691828]
[1733410184111,0.11306333,103440.0,103420.0,0.19354528]
[1733410184326,0.11306333,103440.0,103420.0,0.38692228]
[1733410184541,0.11306333,103440.0,103420.0,0.58029928]
[1733410184948,0.11306333,103440.0,103430.0,0.193367]
[1733410184949,0.01338728,103440.0,103430.0,0.193367]
[1733410185791,0.01338728,103440.0,103420.0,0.38692128]
[1733410186195,0.11306333,103440.0,103420.0,0.38692128]
[1733410186449,0.11306333,103440.0,103420.0,0.58029428]
[1733410186651,0.09967605,103430.0,103420.0,0.00017528]
[1733410186846,0.29304305,103430.0,103420.0,0.00017528]
[1733410187461,0.49304305,103430.0,103420.0,0.00017528]
[1733410187667,5.86857983,103430.0,103420.0,0.00017528]
[1733410187891,5.96422172,103430.0,103420.0,0.00017528]
[1733410188022,5.62471283,103430.0,103420.0,0.00017528]
[1733410188226,5.9795555,103430.0,103420.0,0.00017528]
[1733410189930,5.9795555,103430.0,103420.0,0.00191128]
[1733410190329,4.21359965,103430.0,103420.0,0.19529728]
[1733410190480,4.13579965,103430.0,103420.0,0.19529728]
[1733410190843,0.01425528,103440.0,103430.0,0.193367]
[1733410191059,0.01425528,103440.0,103430.0,0.45451872]
[1733410192949,0.01425528,103440.0,103430.0,0.45651872]
[1733410193262,0.01425528,103440.0,103430.0,0.195367]
[1733410193448,0.01425528,103440.0,103430.0,0.19633366]
[1733410193660,0.01425528,103440.0,103430.0,0.45748538]
[1733410193869,0.01425528,103440.0,103430.0,0.58351872]
[1733410194114,0.01425528,103440.0,103430.0,0.57951872]
[1733410194294,0.01425528,103440.0,103430.0,0.72751872]
[1733410194494,0.01425528,103440.0,103430.0,0.81492654]
[1733410194739,0.01425528,103440.0,103430.0,0.56604305]
[1733410194920,0.01425528,103440.0,103430.0,0.81492654]
[1733410195128,0.01425528,103440.0,103430.0,0.81892654]
[1733410195547,0.01425528,103440.0,103430.0,0.82092654]
[1733410196096,0.01425528,103440.0,103430.0,0.47204305]
[1733410196295,0.01425528,103440.0,103430.0,0.372367]
[1733410197345,0.01425528,103440.0,103430.0,0.366367]
[1733410198085,0.01425528,103440.0,103430.0,0.173]
[1733410198304,0.11393133,103440.0,103430.0,0.173]
[1733410198507,0.55616282,103440.0,103430.0,0.173]
[1733410198964,0.60116282,103440.0,103430.0,0.173]
[1733410199195,0.70116282,103440.0,103430.0,0.173]
[1733410199418,0.60116282,103440.0,103430.0,0.173]
[1733410199886,0.67726282,103440.0,103430.0,0.173]
[1733410200153,0.77726282,103440.0,103430.0,0.173]
[1733410200384,0.77518204,103440.0,103430.0,0.173]
[1733410201502,0.67726282,103440.0,103430.0,0.173]
[1733410202362,0.67726282,103440.0,103420.0,0.00191128]
[1733410202574,6.64234084,103430.0,103420.0,0.00191128]
[1733410202794,6.64234084,103430.0,103420.0,0.00128009]
[1733410203645,6.07345735,103430.0,103420.0,0.00128009]
[1733410203856,5.87496015,103430.0,103420.0,0.00128009]
[1733410204061,6.06832715,103430.0,103420.0,0.00128009]
[1733410204265,6.16832715,103430.0,103420.0,0.00128009]
[1733410204679,5.82446015,103430.0,103420.0,0.00128009]
[1733410204889,3.7158324,103430.0,103420.0,0.19466609]
[1733410205120,3.61615635,103430.0,103420.0,0.19466609]
[1733410206225,0.23125528,103440.0,103420.0,0.38805209]
[1733410206226,0.01425528,103440.0,103420.0,0.38805209]
[1733410206644,0.01425528,103440.0,103420.0,0.58141909]
[1733410206853,0.01425528,103440.0,103420.0,0.38803309]
[1733410207059,0.01425528,103440.0,103420.0,0.58140709]
[1733410207272,0.01425528,103440.0,103420.0,0.38803009]
[1733410207492,0.20760328,103440.0,103420.0,0.00128009]
[1733410207713,1.1742219,103430.0,103420.0,0.00128009]
[1733410207957,4.50082965,103430.0,103420.0,0.00128009]
[1733410208157,4.40082965,103430.0,103420.0,0.00128009]
[1733410208357,3.42128655,103430.0,103420.0,0.00128009]
[1733410208795,3.42128655,103430.0,103420.0,0.19466609]
[1733410209188,3.42128655,103430.0,103420.0,0.00128009]
[1733410209421,3.61888182,103430.0,103420.0,0.00128009]
[1733410209640,4.16113231,103430.0,103420.0,0.00128009]
[1733410210051,3.91224882,103430.0,103420.0,0.00128009]
[1733410210506,4.16113231,103430.0,103420.0,0.00128009]
[1733410211146,5.76486001,103430.0,103420.0,0.00128009]
[1733410211351,6.23424079,103430.0,103420.0,0.00128009]
[1733410211783,6.33424079,103430.0,103420.0,0.00128009]
[1733410212203,6.43424079,103430.0,103420.0,0.00128009]
[1733410212851,6.33424079,103430.0,103420.0,0.00128009]
[1733410213281,6.53216001,103430.0,103420.0,0.00128009]
[1733410213509,6.43216001,103430.0,103420.0,0.00128009]
[1733410213720,6.54417421,103430.0,103420.0,0.00128009]
[1733410213931,0.023,103410.0,103380.0,0.193453]
[1733410214135,0.31608905,103410.0,103380.0,0.38787222]
[1733410214369,0.12267605,103410.0,103390.0,0.193431]
[1733410214576,0.31608105,103410.0,103380.0,0.193448]
[1733410214798,0.50949405,103410.0,103380.0,0.38786216]
[1733410215007,0.31608105,103410.0,103380.0,0.58131116]
[1733410215215,0.12267605,103410.0,103390.0,0.193441]
[1733410215436,0.12267605,103410.0,103390.0,0.386871]
[1733410215671,0.023,103410.0,103400.0,0.193423]
[1733410217458,0.023,103410.0,103390.0,0.580296]
[1733410217903,0.023,103410.0,103400.0,0.193423]
[1733410218110,0.023,103410.0,103390.0,0.386863]
[1733410218318,0.023,103410.0,103390.0,0.386862]
[1733410218525,0.023,103410.0,103390.0,0.386861]
[1733410218746,0.023,103410.0,103390.0,0.19343]
[1733410218953,0.063979,103410.0,103380.0,0.386899]
[1733410219181,0.257384,103410.0,103390.0,0.193441]
[1733410219423,0.31608105,103410.0,103390.0,0.193441]
[1733410219631,0.50949405,103410.0,103380.0,0.580349]
[1733410219847,0.70291105,103410.0,103380.0,0.386897]
[1733410220066,0.023,103400.0,103380.0,0.193447]
[1733410220275,0.09277605,103400.0,103370.0,0.39917695]
[1733410220500,0.27610105,103400.0,103370.0,0.36793236]
[1733410220757,0.26970105,103400.0,103380.0,0.193458]
[1733410221185,0.63578449,103390.0,103360.0,0.2449282]
[1733410221404,3.42128655,103400.0,103380.0,0.193451]
[1733410221613,3.42128655,103400.0,103380.0,0.386902]
[1733410221819,3.42128655,103400.0,103380.0,0.386903]
[1733410222243,3.42128655,103400.0,103380.0,0.580353]
[1733410222484,3.42146177,103400.0,103380.0,0.580352]
[1733410222701,3.42146177,103400.0,103390.0,0.037661]
[1733410222922,3.96344431,103400.0,103390.0,0.037661]
[1733410223147,4.06136353,103400.0,103390.0,0.037661]
[1733410223384,4.875174,103400.0,103390.0,0.037661]
[1733410223599,4.681751,103400.0,103390.0,0.037661]
[1733410225322,3.52113782,103400.0,103390.0,0.037661]
[1733410226389,3.42146177,103400.0,103390.0,0.039397]
[1733410226596,0.78867522,103400.0,103390.0,0.23380616]
[1733410226827,0.00017522,103400.0,103390.0,0.33251505]
[1733410227038,0.00017522,103400.0,103390.0,0.41391505]
[1733410227715,0.15,103430.0,103410.0,0.193393]
[1733410227936,0.15,103430.0,103410.0,0.38696122]
[1733410228157,0.15,103430.0,103420.0,0.193386]
[1733410228356,0.15,103430.0,103410.0,0.43416122]
[1733410228592,0.15,103430.0,103410.0,0.62755622]
[1733410228818,0.15,103430.0,103410.0,0.43416122]
[1733410229028,0.15,103430.0,103420.0,0.193386]
[1733410229232,0.41137643,103430.0,103410.0,0.00017522]
[1733410229434,0.35508638,103420.0,103410.0,0.00017522]
[1733410229642,0.52635205,103430.0,103410.0,0.00017522]
[1733410229862,0.52635205,103430.0,103410.0,0.38697622]
[1733410229863,0.33297605,103430.0,103410.0,0.38697622]
[1733410230069,0.15,103430.0,103410.0,0.38697622]
[1733410230246,0.15,103430.0,103410.0,0.38696622]
[1733410230486,0.15,103430.0,103410.0,0.38696522]
[1733410230722,0.15,103430.0,103410.0,0.19356922]
[1733410230925,0.15,103430.0,103410.0,0.38696122]
[1733410232036,0.15,103430.0,103420.0,0.193386]
[1733410232268,0.15,103430.0,103420.0,0.45476243]
[1733410232544,2.27915248,103440.0,103430.0,0.1]
[1733410232545,0.01425528,103440.0,103430.0,0.1]
[1733410232760,0.15,103450.0,103440.0,0.441948]
[1733410232967,0.15,103450.0,103440.0,0.54162405]
[1733410233609,0.15,103450.0,103440.0,0.46602405]
[1733410234056,0.15,103450.0,103440.0,0.46802405]
[1733410235192,0.15,103450.0,103440.0,0.47202405]
[1733410237899,0.1508678,103450.0,103440.0,0.47202405]
[1733410238826,0.3998176,103450.0,103440.0,0.179]
[1733410239044,0.1508678,103450.0,103440.0,0.179]
[1733410239262,0.1508678,103450.0,103440.0,0.372348]
[1733410240182,0.1508678,103450.0,103440.0,0.47202405]
[1733410241239,0.2008678,103450.0,103440.0,0.47202405]
[1733410242353,0.2008678,103450.0,103440.0,0.372348]
[1733410243662,0.2008678,103450.0,103440.0,0.179]
[1733410244134,0.2008678,103450.0,103440.0,0.372348]
[1733410244581,0.2008678,103450.0,103440.0,0.179]
[1733410245234,0.2008678,103450.0,103440.0,0.372348]
[1733410246562,0.2008678,103450.0,103440.0,0.47202405]
[1733410247015,0.2008678,103450.0,103440.0,1.04757385]
[1733410247240,0.2008678,103450.0,103440.0,0.79862405]
[1733410247712,0.0508678,103450.0,103440.0,0.79862405]
[1733410250528,0.0508678,103450.0,103440.0,0.69862405]
[1733410250732,0.0508678,103450.0,103440.0,0.47202405]
[1733410251585,0.0508678,103450.0,103440.0,0.372348]
[1733410252495,0.0508678,103450.0,103440.0,0.47202405]
[1733410252701,0.0508678,103450.0,103440.0,0.55532405]
[1733410252914,0.0508678,103450.0,103440.0,0.65532405]
[1733410253423,0.0388678,103450.0,103440.0,0.65532405]
[1733410253876,0.0388678,103450.0,103440.0,0.55532405]
[1733410254094,0.0388678,103450.0,103440.0,0.65532405]
[1733410256187,0.0388678,103450.0,103440.0,0.43139921]
[1733410256400,0.0388678,103450.0,103440.0,0.53139921]
[1733410257269,0.0388678,103450.0,103440.0,0.47007121]
[1733410257474,0.0388678,103450.0,103440.0,0.57007121]
[1733410257902,0.0388678,103450.0,103440.0,0.47007121]
[1733410258119,0.0388678,103450.0,103440.0,0.57007121]
[1733410258329,0.0388678,103450.0,103440.0,0.47007121]
[1733410258939,0.0388678,103450.0,103440.0,0.38677121]
[1733410259803,0.0388678,103450.0,103440.0,0.48677121]
[1733410260449,0.0388678,103450.0,103440.0,0.75011709]
[1733410260719,8e-07,103450.0,103440.0,0.75011709]
[1733410260949,0.0008682,103470.0,103460.0,0.566311]
[1733410261155,2e-07,103470.0,103460.0,0.90971432]
[1733410261589,2e-07,103470.0,103460.0,0.93866529]
[1733410261800,0.00029433,103480.0,103470.0,0.543292]
[1733410262008,3.3e-07,103480.0,103470.0,0.80439532]
[1733410262251,0.0008665,103510.0,103500.0,0.193236]
[1733410262489,0.00145087,103510.0,103500.0,0.78180518]
[1733410262693,0.00145087,103510.0,103500.0,0.78083932]
[1733410262899,8.7e-07,103510.0,103500.0,0.78083932]
[1733410263114,9.2e-07,103530.0,103520.0,0.2813]
[1733410263355,4.13e-05,103540.0,103530.0,0.47448]
[1733410263584,4.13e-05,103540.0,103530.0,0.79223333]
[1733410263814,0.001367,103550.0,103540.0,0.2]
[1733410264044,0.001367,103550.0,103540.0,0.46110332]
[1733410264282,0.0031405,103580.0,103550.0,0.439543]
[1733410264489,0.0012,103590.0,103550.0,0.439543]
[1733410264490,0.06292088,103610.0,103590.0,0.1]
[1733410264709,0.06292088,103610.0,103600.0,0.29369101]
[1733410264948,0.06309615,103610.0,103600.0,0.29272605]
[1733410265182,0.06309615,103610.0,103600.0,0.67585584]
[1733410265416,0.06305615,103610.0,103600.0,0.80896785]
[1733410265645,0.06305615,103610.0,103600.0,0.7740209]
[1733410265901,0.06305615,103610.0,103600.0,0.49272605]
[1733410266134,0.06305615,103610.0,103600.0,0.39272605]
[1733410266361,0.06305615,103610.0,103600.0,0.20367605]
[1733410266592,0.06305615,103610.0,103600.0,0.29672605]
[1733410267051,0.06305615,103610.0,103600.0,0.10667605]
[1733410267284,0.06305615,103610.0,103600.0,0.39769107]
[1733410267546,0.06405615,103610.0,103600.0,0.40372605]
[1733410267785,0.06405615,103610.0,103600.0,0.75190889]
[1733410268020,0.06405615,103610.0,103600.0,0.50372605]
[1733410268238,0.06405615,103610.0,103600.0,0.40372605]
[1733410268502,0.31223899,103610.0,103600.0,0.50372605]
[1733410268742,0.06405615,103610.0,103600.0,0.50372605]
[1733410269467,0.31223899,103610.0,103600.0,0.11067605]
[1733410269693,0.31223899,103610.0,103600.0,0.011]
[1733410270165,0.31223899,103610.0,103600.0,0.007]
[1733410270387,0.31223899,103610.0,103580.0,0.00096511]
[1733410270388,0.31123899,103610.0,103580.0,0.00096511]
[1733410270613,0.31123899,103610.0,103590.0,0.29273405]
[1733410270841,0.24818284,103600.0,103590.0,0.29274305]
[1733410271110,0.24818284,103600.0,103590.0,0.29274405]
[1733410271367,0.24818284,103600.0,103590.0,0.09967605]
[1733410272276,0.06405615,103610.0,103600.0,0.19305]
[1733410272484,0.06505615,103610.0,103600.0,0.39272605]
[1733410272718,0.06405615,103610.0,103600.0,0.39272605]
[1733410272954,0.06405615,103610.0,103600.0,0.40272605]
[1733410273425,0.06305615,103610.0,103600.0,0.39989423]
[1733410273848,0.06305615,103610.0,103600.0,0.29989423]
[1733410274078,0.06305615,103610.0,103600.0,0.12757134]
[1733410274285,0.06305615,103610.0,103600.0,0.32458627]
[1733410274492,0.06305615,103610.0,103600.0,0.32362134]
[1733410274706,0.06305615,103610.0,103600.0,0.57180418]
[1733410274961,0.06305615,103610.0,103600.0,0.67180418]
[1733410275801,0.06305615,103610.0,103600.0,0.67380418]
[1733410276007,0.06305615,103610.0,103600.0,0.67080418]
[1733410276260,0.06305615,103610.0,103600.0,0.70941018]
[1733410276467,0.06405615,103610.0,103600.0,0.70941018]
[1733410276672,0.06305615,103610.0,103600.0,0.36122734]
[1733410276898,0.06305615,103610.0,103600.0,0.22262134]
[1733410277121,0.06305615,103610.0,103600.0,0.03257134]
[1733410277338,0.06305615,103610.0,103600.0,0.22658634]
[1733410277550,0.06305615,103610.0,103600.0,0.22562134]
[1733410277771,0.06305615,103610.0,103600.0,0.22262134]
[1733410278227,0.06305615,103610.0,103600.0,0.02757134]
[1733410278448,0.38833899,103610.0,103600.0,0.01]
[1733410278654,0.33308715,103610.0,103600.0,0.01]
[1733410278910,0.58126999,103610.0,103600.0,0.01]
[1733410279361,0.58226999,103610.0,103600.0,0.01]
[1733410279591,0.44125084,103590.0,103580.0,0.00096514]
[1733410279809,0.193087,103580.0,103550.0,0.00096538]
[1733410280030,0.63436984,103580.0,103560.0,0.09967605]
[1733410280259,0.41893602,103580.0,103560.0,0.09967605]
[1733410280473,0.193107,103570.0,103540.0,0.193145]
[1733410280697,0.24818284,103560.0,103550.0,0.0009655]
[1733410280940,0.193143,103550.0,103520.0,0.038638]
[1733410281168,0.44136284,103530.0,103520.0,0.038638]
[1733410281397,0.66803889,103530.0,103520.0,0.038638]
[1733410281658,0.193261,103490.0,103470.0,0.15]
[1733410281887,0.51995684,103480.0,103470.0,0.15]
[1733410282102,0.0013,103460.0,103440.0,0.0117354]
[1733410282377,0.0013,103460.0,103410.0,0.015274]
[1733410282378,0.343386,103420.0,103410.0,0.015274]
[1733410282603,0.343386,103420.0,103360.0,0.0017342]
[1733410282604,0.193442,103390.0,103360.0,0.0017342]
[1733410282809,0.193442,103390.0,103350.0,0.0017342]
[1733410282810,0.24818284,103360.0,103350.0,0.10141025]
[1733410283092,0.24818284,103360.0,103330.0,0.0017348]
[1733410283093,0.205187,103340.0,103330.0,0.0017348]
[1733410283301,0.24818284,103320.0,103310.0,0.001735]
[1733410283535,0.24818284,103320.0,103290.0,0.0044596]
[1733410283536,0.44179284,103300.0,103290.0,0.0044596]
[1733410283750,3.98271158,103300.0,103290.0,0.0044596]
[1733410284019,0.24818284,103290.0,103270.0,0.0017352]
[1733410284278,0.59184984,103270.0,103260.0,0.0137385]
[1733410284486,0.59184984,103270.0,103210.0,0.00096827]
[1733410284487,5.18912288,103270.0,103210.0,0.00096827]
[1733410284704,5.18912288,103270.0,103200.0,2.50004]
[1733410284705,0.43070977,103220.0,103200.0,2.50004]
[1733410284919,4.72510173,103210.0,103200.0,2.28769452]
[1733410285135,4.82477778,103210.0,103200.0,2.21038009]
[1733410285388,5.40584711,103210.0,103200.0,1.30066009]
[1733410285639,0.193854,103170.0,103160.0,0.0154737]
[1733410285873,3.03279562,103170.0,103160.0,0.01605865]
[1733410286080,0.19705507,103170.0,103160.0,0.01605865]
[1733410286330,0.24818284,103200.0,103160.0,0.216704]
[1733410286612,0.19376,103230.0,103200.0,0.1]
[1733410286863,0.24818284,103260.0,103220.0,0.09967605]
[1733410287073,0.24818284,103270.0,103250.0,0.1]
[1733410287307,0.44181184,103290.0,103270.0,0.1]
[1733410287554,0.01960002,103310.0,103290.0,0.1]
[1733410287778,0.24818284,103320.0,103310.0,0.1]
[1733410288023,0.37267717,103320.0,103270.0,0.1]
[1733410288239,1.41617605,103300.0,103290.0,0.00058495]
[1733410288450,1.31517605,103300.0,103290.0,0.00058495]
[1733410288661,2.20578655,103310.0,103290.0,0.00058495]
[1733410288871,0.10106114,103300.0,103250.0,0.19958495]
[1733410289117,2.72016329,103290.0,103240.0,0.19958495]
[1733410289349,2.72016329,103290.0,103220.0,0.09958495]
[1733410289350,0.193742,103230.0,103220.0,0.09958495]
[1733410289566,0.193784,103210.0,103190.0,0.0463]
[1733410289780,0.193784,103210.0,103180.0,0.17768495]
[1733410290017,0.29444409,103200.0,103190.0,0.00058589]
[1733410290257,0.193745,103230.0,103200.0,0.09958495]
[1733410290503,0.19371,103250.0,103220.0,0.09958495]
[1733410290766,0.29435609,103250.0,103220.0,0.1005536]
[1733410290996,0.193668,103270.0,103240.0,0.34776779]
[1733410291217,0.03917205,103290.0,103250.0,0.34776779]
[1733410291482,0.00041505,103320.0,103280.0,0.34818284]
[1733410291808,0.00010687,103310.0,103300.0,0.34776779]
[1733410291937,0.038734,103350.0,103340.0,0.1]
[1733410292188,0.038734,103350.0,103340.0,0.79114633]
[1733410292435,0.01954449,103410.0,103370.0,0.09958495]
[1733410292704,0.09967605,103400.0,103360.0,0.574044]
[1733410292937,0.00097004,103400.0,103370.0,0.19967605]
[1733410293179,0.193423,103400.0,103370.0,0.19967605]
[1733410293409,0.193461,103380.0,103350.0,0.1]
[1733410293639,0.193461,103380.0,103350.0,0.20064341]
[1733410293886,0.00058282,103380.0,103370.0,0.1]
[1733410294098,0.19348,103370.0,103340.0,0.515049]
[1733410294356,0.00058282,103380.0,103370.0,0.1]
[1733410294601,0.00058282,103380.0,103370.0,0.20064322]
[1733410294842,0.29373687,103380.0,103340.0,0.2255]
[1733410295074,0.255549,103350.0,103340.0,0.2255]
[1733410295302,0.280549,103370.0,103350.0,0.1]
[1733410295541,0.00058282,103380.0,103370.0,0.1]
[1733410295783,0.280549,103370.0,103340.0,0.2255]
[1733410296032,0.474066,103350.0,103310.0,0.1]
[1733410296273,0.280549,103350.0,103320.0,0.2006437]
[1733410296509,2.5454462,103370.0,103340.0,0.1]
[1733410296749,0.001,103370.0,103350.0,0.20064343]
[1733410296977,0.281549,103370.0,103340.0,0.19967605]
[1733410297210,0.475029,103370.0,103340.0,0.09967605]
[1733410297456,0.76820105,103370.0,103340.0,0.00096744]
[1733410297716,0.280549,103350.0,103330.0,0.1]
[1733410297958,0.47407,103350.0,103330.0,0.1]
[1733410298318,0.09967605,103340.0,103330.0,0.1]
[1733410298507,0.15114609,103340.0,103280.0,0.1]
[1733410298748,0.474179,103290.0,103260.0,0.1]
[1733410298992,0.193689,103260.0,103240.0,0.0774]
[1733410299204,0.280549,103270.0,103250.0,0.20064437]
[1733410299438,0.280549,103290.0,103260.0,0.10096832]
[1733410299668,0.193686,103260.0,103240.0,0.17798589]
[1733410299874,0.280549,103270.0,103240.0,0.27863033]
[1733410300083,0.280549,103270.0,103250.0,0.10096836]
[1733410300292,0.280549,103290.0,103250.0,0.20064441]
[1733410300501,0.280549,103270.0,103260.0,0.1]
[1733410300703,0.280549,103270.0,103250.0,0.1]
[1733410300913,0.280549,103290.0,103260.0,0.19967605]
[1733410301145,0.280549,103270.0,103260.0,0.19967605]
[1733410301360,0.001,103270.0,103260.0,0.58704305]
[1733410301850,0.19458004,103300.0,103270.0,0.1]
[1733410302070,0.38119509,103290.0,103250.0,0.1]
[1733410302261,0.193671,103270.0,103240.0,0.17895425]
[1733410302471,0.29431709,103270.0,103240.0,0.17395425]
[1733410302678,0.29334705,103270.0,103240.0,0.17395425]
[1733410302887,0.193671,103270.0,103240.0,0.2736303]
[1733410303117,0.387282,103290.0,103250.0,0.10096842]
[1733410303334,4.2003926,103310.0,103270.0,0.293666]
[1733410303551,4.30005565,103310.0,103280.0,0.00096815]
[1733410304183,4.49366265,103310.0,103280.0,0.00096815]
[1733410304426,3.42128655,103310.0,103280.0,0.10096815]
[1733410304643,1.04424018,103330.0,103290.0,0.39329005]
[1733410304856,3.66532355,103340.0,103300.0,0.48817293]
[1733410305062,3.7144996,103340.0,103300.0,0.39424098]
[1733410305267,0.10064609,103330.0,103290.0,0.1]
[1733410305478,0.194605,103310.0,103280.0,0.14897527]
[1733410305731,0.00097004,103300.0,103280.0,0.04897527]
[1733410305984,0.29426109,103300.0,103280.0,0.00017527]
[1733410306195,0.193629,103290.0,103280.0,0.00017527]
[1733410306411,0.29427509,103290.0,103280.0,0.00017527]
[1733410306618,0.09967605,103290.0,103280.0,0.00017527]
[1733410306848,0.387215,103310.0,103280.0,0.09976022]
[1733410307118,0.48788009,103300.0,103280.0,0.00017527]
[1733410307365,0.47459305,103290.0,103280.0,0.00017527]
[1733410307620,0.29330505,103290.0,103280.0,0.00017527]
[1733410308307,0.001,103300.0,103280.0,0.19382327]
[1733410308538,0.1953406,103310.0,103280.0,0.48802434]
[1733410308762,0.001,103290.0,103280.0,0.29437534]
[1733410308976,0.001,103290.0,103280.0,0.39340722]
[1733410309204,0.10141365,103310.0,103290.0,0.19958495]
[1733410309205,0.0017376,103310.0,103290.0,0.19958495]
[1733410309431,0.0017376,103310.0,103300.0,0.29416288]
[1733410309685,0.0017376,103310.0,103300.0,0.39319495]
[1733410309904,0.0017376,103310.0,103300.0,0.41619495]
[1733410310156,0.0017376,103310.0,103300.0,0.515871]
[1733410310362,0.0017376,103310.0,103300.0,0.639171]
[1733410310575,0.0017376,103310.0,103300.0,0.739171]
[1733410310795,0.0017376,103310.0,103300.0,0.639171]
[1733410311277,0.0027376,103310.0,103300.0,0.639171]
[1733410311941,0.0017376,103310.0,103300.0,0.639171]
[1733410312154,0.0017376,103310.0,103300.0,0.843171]
[1733410312369,0.3886766,103380.0,103350.0,0.193515]
[1733410312580,0.3886766,103380.0,103340.0,0.41610895]
[1733410312581,0.48760609,103370.0,103340.0,0.41610895]
[1733410312805,0.48760609,103370.0,103340.0,0.22258495]
[1733410313025,0.29412609,103370.0,103340.0,0.41611595]
[1733410313244,0.09967605,103370.0,103340.0,0.41610295]
[1733410313495,0.10064609,103370.0,103350.0,0.193515]
[1733410313985,0.10064609,103370.0,103350.0,0.487021]
[1733410314188,0.00270764,103380.0,103360.0,0.193498]
[1733410314404,0.10141365,103380.0,103360.0,0.486979]
[1733410314615,0.10238369,103380.0,103360.0,0.293481]